[Event "XII Cracow ICC-A 2024"]
[Site "Krakow"]
[Date "2024.06.26"]
[Round "6.6"]
[White "Bogdanov, Egor"]
[Black "Nurgaliyev, Sauat"]
[Result "1/2-1/2"]
[ECO "B51"]
[WhiteElo "2433"]
[BlackElo "2321"]
[Annotator "TA"]
[PlyCount "74"]
[EventDate "2024.06.20"]
[EventType "swiss"]
[EventCountry "POL"]
[SourceTitle "playchess.com"]
[Source "ChessBase"]
[SourceQuality "1"]
[TimeControl "40/5400+30:1800+30"]

{[%evp 9,74,19,27,32,25,17,37,0,11,0,0,0,0,0,22,10,8,11,14,0,1,7,6,-2,0,-28,-18,-32,-14,-22,-29,-31,-21,-21,0,0,14,0,0,0,0,0,0,0,0,0,10,0,7,0,0,0,0,0,0,0,0,0,0,0,0,0,0,0,0,0,0]} 1. e4 {[%emt 0:00:04]} c5 {[%emt 0:00:40]} 2. Nf3 {[%emt 0:00:41]} d6 {[%emt 0:00:17]} 3. Bb5+ {[%emt 0:00:03]} Nd7 {[%emt 0:00:43]} 4. a4 {[%emt 0:00:34]} Ngf6 {[%emt 0:00:54]} 5. Nc3 {[%emt 0:00:48]} g6 {[%emt 0:01:16]} 6. O-O {[%emt 0:03:37]} Bg7 {[%emt 0:00:26]} 7. Re1 {[%emt 0:09:52]} O-O {[%emt 0:00:22]} 8. d3 {[%emt 0:10:31] White is slightly better.} a6 {[%emt 0:02:06]} 9. Bc4 {[%emt 0:00:27]} b6 {[%emt 0:03:56]} 10. Bf4 {[%emt 0:01:51]} Bb7 {[%emt 0:01:55]} 11. Qd2 {[%emt 0:00:50]} Ng4 {[%emt 0:02:35]} 12. h3 {[%emt 0:07:00]} Nge5 {[%emt 0:00:32]} 13. Nxe5 {[%emt 0:00:20]} Nxe5 {[%emt 0:00:33]} 14. Bh6 {[%emt 0:01:17]} e6 {[%emt 0:02:10]} 15. Bxg7 {[%emt 0:02:11]} Kxg7 {[%emt 0:00:09]} 16. f4 {[%emt 0:01:24]} Nc6 {[%emt 0:01:46]} 17. Rf1 {[%emt 0:09:07]} Nd4 {[%emt 0:05:03]} 18. Ne2 {[%emt 0:04:29]} Nxe2+ {[%emt 0:03:28]} 19. Qxe2 {[%emt 0:00:02]} d5 {[%emt 0:00:26]} 20. exd5 {[%emt 0:01:17]} exd5 {[%emt 0:00:05]} 21. Bb3 {[%emt 0:00:54] The position is equal.} Qd7 {[%emt 0:10:30]} (21... Qf6 $5) 22. f5 {[%emt 0:02:02]} f6 {[%emt 0:00:29]} 23. fxg6 {[%emt 0:03:06]} hxg6 {[%emt 0:01:46]} 24. Qf2 {[%emt 0:00:19]} Qd6 {[%emt 0:14:36]} 25. c3 {[%emt 0:03:27]} Rae8 {[%emt 0:05:03]} 26. d4 {[%emt 0:03:26]} cxd4 {[%emt 0:05:11]} 27. cxd4 {[%emt 0:00:51]} Rh8 {[%emt 0:08:24]} 28. Rae1 {[%emt 0:02:17]} Bc6 {[%emt 0:00:54]} 29. Bc2 {[%emt 0:13:42]} Bd7 {[%emt 0:05:34]} 30. Rxe8 {[%emt 0:07:06]} Rxe8 {[%emt 0:00:16]} 31. Re1 {[%emt 0:00:15]} a5 {[%emt 0:05:03]} 32. Rxe8 {[%emt 0:00:28]} Bxe8 $11 {[%emt 0:00:02] KQB-KQB} 33. Qe3 {[%emt 0:01:42]} Bd7 {[%emt 0:01:31]} 34. h4 {[%emt 0:00:23]} Qe6 {[%emt 0:03:28]} 35. Qg3 {[%emt 0:03:52]} Qg4 {[%emt 0:02:01]} 36. Qxg4 {[%emt 0:00:19]} Bxg4 {[%emt 0:00:08]} 37. Kf2 {[%emt 0:00:10]} g5 {[%emt 0:02:19] A balanced but interesting game.   Weighted Error Value: White=0.05 (flawless) /Black=0.03 (flawless) .  Inaccurate:     	White=2     	---        OK:         	White=14    	Black=13     Best:        	---       	Black=1} 1/2-1/2

[Event "XII Cracow ICC-A 2024"]
[Site "Krakow"]
[Date "2024.06.26"]
[Round "6.7"]
[White "Mahitosh Dey"]
[Black "Turski, Bartlomiej"]
[Result "1/2-1/2"]
[ECO "B56"]
[WhiteElo "2232"]
[BlackElo "2334"]
[Annotator "RC"]
[PlyCount "40"]
[EventDate "2024.06.20"]
[EventType "swiss"]
[EventCountry "POL"]
[SourceTitle "playchess.com"]
[Source "ChessBase"]
[SourceQuality "1"]
[TimeControl "40/5400+30:1800+30"]

1. e4 {[%emt 0:00:03]} c5 {[%emt 0:00:04]} 2. Nf3 {[%emt 0:00:11]} Nc6 {[%emt 0:00:03]} 3. d4 {[%emt 0:00:05]} cxd4 {[%emt 0:00:03]} 4. Nxd4 {[%emt 0:00:05]} Nf6 {[%emt 0:00:03]} 5. Nc3 {[%emt 0:00:14]} d6 {[%emt 0:00:04]} 6. f3 {[%emt 0:00:05]} e5 {[%emt 0:00:03]} 7. Nb3 {[%emt 0:00:04]} Be7 {[%emt 0:00:06]} 8. Be3 {[%emt 0:00:04]} O-O {[%emt 0:00:07]} 9. Qd2 {[%emt 0:00:03]} a5 {[%emt 0:00:06]} 10. Bb5 {[%emt 0:00:05]} Be6 {[%emt 0:00:10]} 11. O-O-O {[%emt 0:00:06]} Nb4 {[%emt 0:00:05]} 12. Kb1 {[%emt 0:08:50]} d5 {[%emt 0:00:15]} 13. exd5 {[%emt 0:00:05]} Nbxd5 {[%emt 0:00:15]} 14. Nxd5 {[%emt 0:00:12]} Nxd5 {[%emt 0:00:05]} 15. Bc4 {[%emt 0:08:57]} Nxe3 {[%emt 0:00:15]} 16. Qxe3 {[%emt 0:00:04]} Qc8 {[%emt 0:00:04]} 17. Bxe6 {[%emt 0:00:08]} Qxe6 {[%emt 0:00:03]} 18. Rhe1 {[%emt 0:01:02]} Rfd8 {[%emt 0:00:08]} 19. Rxd8+ {[%emt 0:02:37]} Rxd8 {[%emt 0:00:44]} 20. Nc5 {[%emt 0:00:06]} Bxc5 {[%emt 0:06:37]} 1/2-1/2

[Event "XII Cracow ICC-A 2024"]
[Site "Krakow"]
[Date "2024.06.26"]
[Round "6.8"]
[White "Fier, Alexandr"]
[Black "Aakash Sharadchandra, Dalvi"]
[Result "1-0"]
[ECO "A13"]
[WhiteElo "2602"]
[BlackElo "2291"]
[Annotator "RC"]
[PlyCount "89"]
[EventDate "2024.06.20"]
[EventType "swiss"]
[EventCountry "POL"]
[SourceTitle "playchess.com"]
[Source "ChessBase"]
[SourceQuality "1"]
[TimeControl "40/5400+30:1800+30"]

1. c4 {[%emt 0:00:03]} Nf6 {[%emt 0:00:12]} 2. Nf3 {[%emt 0:00:04]} e6 {[%emt 0:00:18]} 3. g3 {[%emt 0:00:03]} d5 {[%emt 0:00:23]} 4. Bg2 {[%emt 0:00:05]} dxc4 {[%emt 0:01:01]} 5. Qa4+ {[%emt 0:00:05]} Bd7 {[%emt 0:03:42]} 6. Qxc4 {[%emt 0:00:04]} c5 {[%emt 0:00:06]} 7. Ne5 {[%emt 0:00:02]} Qc8 {[%emt 0:00:11]} 8. Qd3 {[%emt 0:00:03]} Nc6 {[%emt 0:05:15]} 9. Nxd7 {[%emt 0:00:05]} Qxd7 {[%emt 0:00:31]} 10. Qxd7+ {[%emt 0:00:03]} Kxd7 {[%emt 0:00:10]} 11. Nc3 {[%emt 0:00:38]} Be7 {[%emt 0:01:16]} 12. b3 {[%emt 0:00:18]} Rac8 {[%emt 0:01:25]} 13. Bb2 {[%emt 0:00:04]} Rhd8 {[%emt 0:01:30]} 14. Rc1 {[%emt 0:00:11]} Ke8 {[%emt 0:06:01]} 15. d3 {[%emt 0:02:01]} b6 {[%emt 0:01:22]} 16. O-O {[%emt 0:00:30]} Bd6 {[%emt 0:10:21]} 17. f4 {[%emt 0:04:35]} Be7 {[%emt 0:10:31]} 18. h3 {[%emt 0:00:31]} Nd4 {[%emt 0:02:29]} 19. Kf2 {[%emt 0:00:29]} Kf8 {[%emt 0:03:48]} 20. Rfd1 {[%emt 0:01:01]} Nc6 {[%emt 0:03:00]} 21. e3 {[%emt 0:07:24]} Rd7 {[%emt 0:07:15]} 22. Ke2 {[%emt 0:00:31]} Nb4 {[%emt 0:03:24]} 23. a3 {[%emt 0:01:16]} Nbd5 {[%emt 0:03:20]} 24. Nb1 {[%emt 0:00:09]} Rcd8 {[%emt 0:03:32]} 25. g4 {[%emt 0:08:36]} h6 {[%emt 0:02:11]} 26. Nd2 {[%emt 0:01:19]} Ne8 {[%emt 0:04:11]} 27. Nf3 {[%emt 0:01:58]} Bf6 {[%emt 0:00:14]} 28. Ne5 {[%emt 0:00:14]} Rc7 {[%emt 0:01:15]} 29. Rc2 {[%emt 0:03:37]} g5 {[%emt 0:03:20]} 30. Rf1 {[%emt 0:00:05]} Ke7 {[%emt 0:02:56]} 31. f5 {[%emt 0:01:05]} Bxe5 {[%emt 0:03:34]} 32. Bxe5 {[%emt 0:00:04]} Rcd7 {[%emt 0:00:11]} 33. fxe6 {[%emt 0:05:39]} fxe6 {[%emt 0:00:27]} 34. Rcc1 {[%emt 0:05:11]} Ndf6 {[%emt 0:03:08]} 35. Rcd1 {[%emt 0:01:41]} Nd5 {[%emt 0:00:28]} 36. Rf2 {[%emt 0:00:17]} Rc8 {[%emt 0:01:50]} 37. Rdf1 {[%emt 0:00:37]} Nd6 {[%emt 0:00:52]} 38. Bg7 {[%emt 0:00:55]} Rg8 {[%emt 0:00:39]} 39. Bxh6 {[%emt 0:00:28]} Rdd8 {[%emt 0:00:48]} 40. Kd2 {[%emt 0:02:38]} Rg6 {[%emt 0:03:35]} 41. Bf8+ {[%emt 0:31:44]} Kd7 {[%emt 0:30:10]} 42. Bxd6 {[%emt 0:01:56]} Kxd6 {[%emt 0:00:03]} 43. Rf7 {[%emt 0:00:07]} a5 {[%emt 0:00:49]} 44. Rb7 {[%emt 0:01:01]} Kc6 {[%emt 0:01:18]} 45. Rff7 {[%emt 0:00:06]} 1-0

[Event "XII Cracow ICC-A 2024"]
[Site "Krakow"]
[Date "2024.06.26"]
[Round "6.9"]
[White "Marszalek, Maciej"]
[Black "Kelires, Andreas"]
[Result "0-1"]
[ECO "C00"]
[WhiteElo "2255"]
[BlackElo "2515"]
[Annotator "RC"]
[PlyCount "112"]
[EventDate "2024.06.20"]
[EventType "swiss"]
[EventCountry "POL"]
[SourceTitle "playchess.com"]
[Source "ChessBase"]
[SourceQuality "1"]
[TimeControl "40/5400+30:1800+30"]

1. c4 {[%emt 0:00:21]} e6 {[%emt 0:00:07]} 2. e4 {[%emt 0:01:44]} c5 {[%emt 0:00:13]} 3. Nc3 {[%emt 0:00:06]} Nc6 {[%emt 0:00:09]} 4. g3 {[%emt 0:00:24]} Nd4 {[%emt 0:00:56]} 5. Bg2 {[%emt 0:00:43]} Ne7 {[%emt 0:00:24]} 6. d3 {[%emt 0:00:40]} Nec6 {[%emt 0:00:22]} 7. Nge2 {[%emt 0:00:49]} Be7 {[%emt 0:00:14]} 8. O-O {[%emt 0:01:03]} O-O {[%emt 0:00:13]} 9. Be3 {[%emt 0:01:11]} a6 {[%emt 0:01:54]} 10. a4 {[%emt 0:03:43]} d6 {[%emt 0:00:57]} 11. f4 {[%emt 0:01:41]} Rb8 {[%emt 0:04:32]} 12. Bf2 {[%emt 0:01:55]} Bd7 {[%emt 0:03:47]} 13. Rb1 {[%emt 0:11:55]} Bf6 {[%emt 0:06:10]} 14. g4 {[%emt 0:05:45]} g6 {[%emt 0:07:23]} 15. Nxd4 {[%emt 0:09:45]} cxd4 {[%emt 0:16:18]} 16. Ne2 {[%emt 0:00:21]} b5 {[%emt 0:01:26]} 17. axb5 {[%emt 0:00:47]} axb5 {[%emt 0:00:04]} 18. b3 {[%emt 0:00:45]} e5 {[%emt 0:07:38]} 19. h3 {[%emt 0:03:28]} Ra8 {[%emt 0:04:08]} 20. Qd2 {[%emt 0:02:32]} b4 {[%emt 0:12:14]} 21. g5 {[%emt 0:02:57]} Be7 {[%emt 0:00:20]} 22. Bg3 {[%emt 0:00:38]} Ra3 {[%emt 0:02:39]} 23. Rb2 {[%emt 0:04:27]} f6 {[%emt 0:05:53]} 24. gxf6 {[%emt 0:03:51]} Bxf6 {[%emt 0:00:04]} 25. Kh2 {[%emt 0:03:28]} Qe7 {[%emt 0:01:10]} 26. Qe1 {[%emt 0:01:51]} Kg7 {[%emt 0:04:45]} 27. Kh1 {[%emt 0:01:32]} Rfa8 {[%emt 0:00:41]} 28. Nc1 {[%emt 0:00:12]} Ra1 {[%emt 0:06:13]} 29. Qf2 {[%emt 0:02:09]} Rf8 {[%emt 0:01:04]} 30. Ra2 {[%emt 0:01:12]} Rxa2 {[%emt 0:00:33]} 31. Qxa2 {[%emt 0:00:09]} exf4 {[%emt 0:02:33]} 32. Bxf4 {[%emt 0:01:33]} Be5 {[%emt 0:01:17]} 33. Qd2 {[%emt 0:02:54]} Bxf4 {[%emt 0:01:12]} 34. Rxf4 {[%emt 0:01:57]} Rxf4 {[%emt 0:00:05]} 35. Qxf4 {[%emt 0:00:08]} Qe5 {[%emt 0:00:08]} 36. Ne2 {[%emt 0:03:00]} Qxf4 {[%emt 0:01:53]} 37. Nxf4 {[%emt 0:00:01]} Kf6 {[%emt 0:00:18]} 38. Kh2 {[%emt 0:00:48]} Ke5 {[%emt 0:00:03]} 39. Kg3 {[%emt 0:00:05]} g5 {[%emt 0:05:15]} 40. Nd5 {[%emt 0:04:30]} Be6 {[%emt 0:01:31]} 41. Nc7 {[%emt 0:30:27]} h5 {[%emt 0:10:26]} 42. Bf1 {[%emt 0:00:00]} h4+ {[%emt 0:04:11]} 43. Kf3 {[%emt 0:00:00]} Na5 {[%emt 0:02:08]} 44. Na6 {[%emt 0:00:00]} Nxb3 {[%emt 0:00:43]} 45. Nxb4 {[%emt 0:00:00]} Nd2+ {[%emt 0:00:26]} 46. Ke2 {[%emt 0:00:00]} Nxf1 {[%emt 0:00:05]} 47. Kxf1 {[%emt 0:00:00]} Bxh3+ {[%emt 0:00:07]} 48. Kf2 {[%emt 0:00:00]} Bd7 {[%emt 0:01:38]} 49. Nc2 {[%emt 0:00:00]} g4 {[%emt 0:01:09]} 50. Kg2 {[%emt 0:00:00]} Kf4 {[%emt 0:03:32]} 51. Nxd4 {[%emt 0:00:00]} h3+ {[%emt 0:00:04]} 52. Kg1 {[%emt 0:00:00]} g3 {[%emt 0:00:36]} 53. Ne2+ {[%emt 0:00:00]} Kf3 {[%emt 0:00:06]} 54. Nd4+ {[%emt 0:00:00]} Ke3 {[%emt 0:00:24]} 55. Nf5+ {[%emt 0:00:00]} Bxf5 {[%emt 0:00:11]} 56. exf5 {[%emt 0:00:00]} h2+ {[%emt 0:00:05]} 0-1

[Event "XII Cracow ICC-A 2024"]
[Site "Krakow"]
[Date "2024.06.26"]
[Round "6.11"]
[White "Hollan, Martin"]
[Black "Kutowski, Marcel"]
[Result "1-0"]
[ECO "B12"]
[WhiteElo "2373"]
[BlackElo "2230"]
[Annotator "RC"]
[PlyCount "89"]
[EventDate "2024.06.20"]
[EventType "swiss"]
[EventCountry "POL"]
[SourceTitle "playchess.com"]
[Source "ChessBase"]
[SourceQuality "1"]
[TimeControl "40/5400+30:1800+30"]

1. e4 {[%emt 0:00:09]} c6 {[%emt 0:00:09]} 2. d4 {[%emt 0:00:08]} d5 {[%emt 0:00:05]} 3. e5 {[%emt 0:00:06]} Bf5 {[%emt 0:00:08]} 4. h4 {[%emt 0:00:12]} h5 {[%emt 0:00:06]} 5. Bd3 {[%emt 0:00:22]} Bxd3 {[%emt 0:00:08]} 6. Qxd3 {[%emt 0:00:06]} e6 {[%emt 0:00:06]} 7. Bg5 {[%emt 0:00:19]} Qa5+ {[%emt 0:02:04]} 8. Nd2 {[%emt 0:00:23]} Qa6 {[%emt 0:00:46]} 9. c4 {[%emt 0:02:09]} Bb4 {[%emt 0:03:34]} 10. b3 {[%emt 0:00:22]} Bxd2+ {[%emt 0:06:47]} 11. Bxd2 {[%emt 0:04:37]} Ne7 {[%emt 0:08:26]} 12. Ne2 {[%emt 0:00:40]} Nd7 {[%emt 0:04:23]} 13. O-O {[%emt 0:02:25]} O-O-O {[%emt 0:09:32]} 14. Ng3 {[%emt 0:06:57]} dxc4 {[%emt 0:08:37]} 15. Qf3 {[%emt 0:01:08]} f5 {[%emt 0:03:33]} 16. Bg5 {[%emt 0:08:31]} Rde8 {[%emt 0:11:09]} 17. Nxh5 {[%emt 0:05:06]} Rh7 {[%emt 0:01:57]} 18. Nf4 {[%emt 0:00:24]} Nd5 {[%emt 0:01:10]} 19. Nxe6 {[%emt 0:00:44]} Rxe6 {[%emt 0:02:44]} 20. Qxf5 {[%emt 0:00:05]} Rhh6 {[%emt 0:03:26]} 21. Bxh6 {[%emt 0:00:05]} Rxh6 {[%emt 0:00:10]} 22. Qf7 {[%emt 0:18:08]} Rh8 {[%emt 0:12:00]} 23. Qxg7 {[%emt 0:02:24]} Re8 {[%emt 0:00:05]} 24. h5 {[%emt 0:09:06]} c3 {[%emt 0:01:24]} 25. h6 {[%emt 0:13:00]} Qe2 {[%emt 0:02:48]} 26. Rae1 {[%emt 0:14:25]} Qh5 {[%emt 0:00:41]} 27. e6 {[%emt 0:04:09]} N7f6 {[%emt 0:01:00]} 28. Re5 {[%emt 0:00:24]} Qh4 {[%emt 0:01:06]} 29. g3 {[%emt 0:01:19]} Qxd4 {[%emt 0:03:01]} 30. Rxd5 {[%emt 0:00:22]} cxd5 {[%emt 0:03:17]} 31. h7 {[%emt 0:00:07]} Qe5 {[%emt 0:06:30]} 32. h8=Q {[%emt 0:00:20]} Rxh8 {[%emt 0:00:09]} 33. Qxh8+ {[%emt 0:00:05]} Kc7 {[%emt 0:00:03]} 34. Qg7+ {[%emt 0:00:59]} Kd6 {[%emt 0:00:50]} 35. Qxb7 {[%emt 0:01:11]} Kxe6 {[%emt 0:00:06]} 36. Qxa7 {[%emt 0:02:13]} d4 {[%emt 0:00:08]} 37. Qa6+ {[%emt 0:00:16]} Kf5 {[%emt 0:00:11]} 38. a4 {[%emt 0:01:43]} Qd5 {[%emt 0:02:47]} 39. a5 {[%emt 0:01:18]} d3 {[%emt 0:00:21]} 40. Qc8+ {[%emt 0:00:04]} Nd7 {[%emt 0:00:06]} 41. Qxc3 {[%emt 0:32:20]} Ne5 {[%emt 0:31:06]} 42. f4 {[%emt 0:00:00]} Nc6 {[%emt 0:00:00]} 43. Rd1 {[%emt 0:00:00]} Kg4 {[%emt 0:00:00]} 44. Qxd3 {[%emt 0:00:00]} Qc5+ {[%emt 0:00:00]} 45. Kg2 {[%emt 0:00:00]} 1-0

[Event "XII Cracow ICC-A 2024"]
[Site "Krakow"]
[Date "2024.06.26"]
[Round "6.12"]
[White "Citak, Selim"]
[Black "Backiel, Hubert"]
[Result "1-0"]
[ECO "D44"]
[WhiteElo "2345"]
[BlackElo "2200"]
[Annotator "RC"]
[PlyCount "81"]
[EventDate "2024.06.20"]
[EventType "swiss"]
[EventCountry "POL"]
[SourceTitle "playchess.com"]
[Source "ChessBase"]
[SourceQuality "1"]
[TimeControl "40/5400+30:1800+30"]

1. d4 {[%emt 0:00:03]} d5 {[%emt 0:01:17]} 2. c4 {[%emt 0:00:09]} e6 {[%emt 0:00:05]} 3. Nf3 {[%emt 0:00:30]} Nf6 {[%emt 0:00:04]} 4. Nc3 {[%emt 0:00:16]} c6 {[%emt 0:00:04]} 5. Bg5 {[%emt 0:00:48]} dxc4 {[%emt 0:00:03]} 6. e4 {[%emt 0:00:29]} b5 {[%emt 0:00:08]} 7. e5 {[%emt 0:00:25]} h6 {[%emt 0:00:03]} 8. Bh4 {[%emt 0:00:06]} g5 {[%emt 0:00:02]} 9. Nxg5 {[%emt 0:00:37]} hxg5 {[%emt 0:00:04]} 10. Bxg5 {[%emt 0:00:06]} Nbd7 {[%emt 0:00:08]} 11. g3 {[%emt 0:00:26]} Bb7 {[%emt 0:00:14]} 12. Bg2 {[%emt 0:00:17]} Qb6 {[%emt 0:00:04]} 13. exf6 {[%emt 0:00:05]} O-O-O {[%emt 0:00:35]} 14. O-O {[%emt 0:00:19]} c5 {[%emt 0:00:44]} 15. d5 {[%emt 0:00:20]} b4 {[%emt 0:00:04]} 16. Rb1 {[%emt 0:01:01]} Qa6 {[%emt 0:09:23]} 17. dxe6 {[%emt 0:00:25]} Bxg2 {[%emt 0:00:18]} 18. e7 {[%emt 0:00:16]} Bxf1 {[%emt 0:00:11]} 19. Kxf1 {[%emt 0:00:44]} Bxe7 {[%emt 0:12:25]} 20. fxe7 {[%emt 0:00:15]} Rde8 {[%emt 0:00:23]} 21. Ne4 {[%emt 0:00:13]} Qc6 {[%emt 0:25:05]} 22. Nd6+ {[%emt 0:05:52]} Kc7 {[%emt 0:07:52]} 23. Nxe8+ {[%emt 0:01:06]} Rxe8 {[%emt 0:00:26]} 24. Kg1 {[%emt 0:04:31]} Ne5 {[%emt 0:03:46]} 25. Bf4 {[%emt 0:04:56]} Rxe7 {[%emt 0:00:56]} 26. Qe2 {[%emt 0:00:55]} Kb6 {[%emt 0:05:48]} 27. Bxe5 {[%emt 0:01:35]} f6 {[%emt 0:00:03]} 28. Qxc4 {[%emt 0:01:48]} Rxe5 {[%emt 0:00:24]} 29. Qf4 {[%emt 0:10:51]} Kb5 {[%emt 0:15:49]} 30. b3 {[%emt 0:09:52]} a5 {[%emt 0:05:25]} 31. h4 {[%emt 0:02:27]} a4 {[%emt 0:01:54]} 32. Qc4+ {[%emt 0:15:43]} Ka5 {[%emt 0:03:04]} 33. bxa4 {[%emt 0:02:15]} Kxa4 {[%emt 0:04:28]} 34. Rxb4+ {[%emt 0:00:32]} Ka5 {[%emt 0:00:07]} 35. Rb1 {[%emt 0:02:48]} Re4 {[%emt 0:00:26]} 36. Qc3+ {[%emt 0:02:11]} Ka6 {[%emt 0:00:05]} 37. h5 {[%emt 0:01:15]} Ra4 {[%emt 0:00:30]} 38. h6 {[%emt 0:01:30]} Qe4 {[%emt 0:00:06]} 39. Qxf6+ {[%emt 0:00:09]} Qe6 {[%emt 0:00:21]} 40. Qxe6+ {[%emt 0:00:04]} Ka7 {[%emt 0:00:03]} 41. Qb6+ {[%emt 0:30:07]} 1-0

[Event "XII Cracow ICC-A 2024"]
[Site "Krakow"]
[Date "2024.06.26"]
[Round "6.13"]
[White "Czernek, Tymon"]
[Black "Gierulski, Kamil"]
[Result "0-1"]
[ECO "B90"]
[WhiteElo "2316"]
[BlackElo "2242"]
[Annotator "RC"]
[PlyCount "82"]
[EventDate "2024.06.20"]
[EventType "swiss"]
[EventCountry "POL"]
[SourceTitle "playchess.com"]
[Source "ChessBase"]
[SourceQuality "1"]
[TimeControl "40/5400+30:1800+30"]

1. e4 {[%emt 0:02:14]} c5 {[%emt 0:00:01]} 2. Nf3 {[%emt 0:00:05]} d6 {[%emt 0:00:02]} 3. d4 {[%emt 0:00:07]} cxd4 {[%emt 0:00:04]} 4. Nxd4 {[%emt 0:00:04]} Nf6 {[%emt 0:00:04]} 5. Nc3 {[%emt 0:00:03]} a6 {[%emt 0:00:03]} 6. f3 {[%emt 0:00:11]} e5 {[%emt 0:00:04]} 7. Nb3 {[%emt 0:00:04]} Be6 {[%emt 0:00:05]} 8. Be3 {[%emt 0:00:06]} Be7 {[%emt 0:00:05]} 9. Qd2 {[%emt 0:00:04]} h5 {[%emt 0:00:08]} 10. Nd5 {[%emt 0:02:14]} Nxd5 {[%emt 0:00:10]} 11. exd5 {[%emt 0:00:08]} Bf5 {[%emt 0:00:02]} 12. Be2 {[%emt 0:03:38]} a5 {[%emt 0:00:06]} 13. O-O {[%emt 0:02:11]} a4 {[%emt 0:00:17]} 14. Nc1 {[%emt 0:00:06]} Nd7 {[%emt 0:04:22]} 15. Bd3 {[%emt 0:09:44]} Bxd3 {[%emt 0:00:12]} 16. Nxd3 {[%emt 0:00:02]} O-O {[%emt 0:03:23]} 17. c4 {[%emt 0:01:42]} Qa5 {[%emt 0:09:15]} 18. Qe2 {[%emt 0:01:39]} Nf6 {[%emt 0:14:44]} 19. Bd2 {[%emt 0:03:38]} Qa7+ {[%emt 0:04:17]} 20. Kh1 {[%emt 0:00:10]} Rfe8 {[%emt 0:02:20]} 21. Rac1 {[%emt 0:01:11]} Bd8 {[%emt 0:00:47]} 22. Nf2 {[%emt 0:05:25]} Qa6 {[%emt 0:01:46]} 23. Qd3 {[%emt 0:03:08]} Ba5 {[%emt 0:03:47]} 24. Bg5 {[%emt 0:01:35]} Nh7 {[%emt 0:00:53]} 25. Be3 {[%emt 0:00:05]} Bb6 {[%emt 0:00:57]} 26. Ne4 {[%emt 0:01:41]} Bxe3 {[%emt 0:00:37]} 27. Qxe3 {[%emt 0:00:01]} f5 {[%emt 0:01:01]} 28. Nd2 {[%emt 0:01:10]} Rac8 {[%emt 0:03:25]} 29. Qd3 {[%emt 0:02:59]} Rf8 {[%emt 0:03:34]} 30. Rc3 {[%emt 0:01:03]} Rce8 {[%emt 0:09:31]} 31. Ra3 {[%emt 0:05:59]} Qb6 {[%emt 0:01:19]} 32. Qc2 {[%emt 0:09:30]} e4 {[%emt 0:02:59]} 33. c5 {[%emt 0:23:02]} dxc5 {[%emt 0:10:33]} 34. Rxa4 {[%emt 0:02:25]} e3 {[%emt 0:02:21]} 35. Nb1 {[%emt 0:01:08]} e2 {[%emt 0:05:08]} 36. Re1 {[%emt 0:00:06]} c4 {[%emt 0:00:11]} 37. d6 {[%emt 0:06:53]} Qf2 {[%emt 0:00:13]} 38. Qxc4+ {[%emt 0:00:22]} Rf7 {[%emt 0:01:29]} 39. Qc1 {[%emt 0:00:06]} Rd7 {[%emt 0:02:41]} 40. h3 {[%emt 0:07:46]} Rxd6 {[%emt 0:00:44]} 41. Nc3 {[%emt 0:31:20]} Rg6 {[%emt 0:33:37]} 0-1

[Event "XII Cracow ICC-A 2024"]
[Site "Krakow"]
[Date "2024.06.26"]
[Round "6.14"]
[White "Lohia, Sohum"]
[Black "Petrovic, Aleksa"]
[Result "1/2-1/2"]
[ECO "C79"]
[WhiteElo "2270"]
[BlackElo "2303"]
[Annotator "RC"]
[PlyCount "46"]
[EventDate "2024.06.20"]
[EventType "swiss"]
[EventCountry "POL"]
[SourceTitle "playchess.com"]
[Source "ChessBase"]
[SourceQuality "1"]
[TimeControl "40/5400+30:1800+30"]

1. e4 {[%emt 0:00:04]} e5 {[%emt 0:00:06]} 2. Nf3 {[%emt 0:00:08]} Nc6 {[%emt 0:00:06]} 3. Bb5 {[%emt 0:00:10]} a6 {[%emt 0:00:16]} 4. Ba4 {[%emt 0:00:11]} Nf6 {[%emt 0:00:08]} 5. O-O {[%emt 0:00:11]} d6 {[%emt 0:00:15]} 6. Re1 {[%emt 0:00:20]} Bd7 {[%emt 0:00:06]} 7. c3 {[%emt 0:00:13]} g6 {[%emt 0:00:05]} 8. d4 {[%emt 0:00:13]} Bg7 {[%emt 0:00:04]} 9. h3 {[%emt 0:00:12]} O-O {[%emt 0:00:29]} 10. Bc2 {[%emt 0:00:15]} Qe8 {[%emt 0:01:29]} 11. a4 {[%emt 0:02:58]} Nh5 {[%emt 0:02:22]} 12. Na3 {[%emt 0:00:23]} b5 {[%emt 0:06:14]} 13. Be3 {[%emt 0:10:44]} Rb8 {[%emt 0:12:45]} 14. axb5 {[%emt 0:02:55]} axb5 {[%emt 0:00:05]} 15. Bd3 {[%emt 0:11:54]} b4 {[%emt 0:13:24]} 16. Nc4 {[%emt 0:07:31]} bxc3 {[%emt 0:05:38]} 17. bxc3 {[%emt 0:00:37]} f6 {[%emt 0:08:40]} 18. Qd2 {[%emt 0:04:36]} g5 {[%emt 0:02:33]} 19. d5 {[%emt 0:11:10]} Ne7 {[%emt 0:01:27]} 20. Ra7 {[%emt 0:01:38]} Nc8 {[%emt 0:01:46]} 21. Raa1 {[%emt 0:04:18]} Ne7 {[%emt 0:06:39]} 22. Ra7 {[%emt 0:00:47]} Nc8 {[%emt 0:00:14]} 23. Raa1 {[%emt 0:01:13]} Ne7 {[%emt 0:00:05]} 1/2-1/2

[Event "XII Cracow ICC-A 2024"]
[Site "Krakow"]
[Date "2024.06.26"]
[Round "6.15"]
[White "Vasynda, Oleksandr"]
[Black "Brzezina, Piotr"]
[Result "0-1"]
[ECO "E11"]
[WhiteElo "2219"]
[BlackElo "2298"]
[Annotator "RC"]
[PlyCount "48"]
[EventDate "2024.06.20"]
[EventType "swiss"]
[EventCountry "POL"]
[SourceTitle "playchess.com"]
[Source "ChessBase"]
[SourceQuality "1"]
[TimeControl "40/5400+30:1800+30"]

1. d4 Nf6 2. Nf3 e6 3. c4 Bb4+ 4. Bd2 c5 5. e3 O-O 6. Bxb4 cxb4 7. Nbd2 d6 8. Bd3 a5 9. Qc2 b6 10. Ne4 h6 11. Nxf6+ Qxf6 12. Be4 Ra7 13. O-O Rc7 14. Qb3 Ba6 15. Nd2 d5 16. Bd3 Rfc8 17. cxd5 a4 18. Ne4 Qg6 19. Qxb4 Bxd3 20. Nd6 Bxf1 21. Rxf1 Rf8 22. Qxb6 Rd7 23. Nb7 exd5 24. Qb4 Nc6 0-1